bitfinex/quotes_BTCUSD_20251219
["timestamp","ask_amount","ask_price","bid_price","bid_amount"]
[1766165877483,0.0065291,87481.0,87467.0,0.62367]
[1766165877632,0.0065291,87481.0,87454.0,0.0085]
[1766165877633,0.001099,87467.0,87454.0,0.0085]
[1766165877845,0.001099,87467.0,87454.0,0.006]
[1766165878229,0.06859826,87466.0,87455.0,0.0025]
[1766165878468,0.01143301,87466.0,87455.0,0.0025]
[1766165878653,0.01143288,87467.0,87452.0,0.0025]
[1766165878942,0.01743249,87470.0,87452.0,0.0025]
[1766165878943,0.01143262,87469.0,87452.0,0.0025]
[1766165879058,0.01143275,87468.0,87443.0,0.02973072]
[1766165879264,0.01743249,87470.0,87441.0,1.16927729]
[1766165879265,0.01143353,87462.0,87444.0,0.01]
[1766165879483,0.01143419,87457.0,87445.0,0.0182947]
[1766165879700,0.006,87457.0,87445.0,0.0182947]
[1766165880159,0.01143236,87471.0,87448.0,0.62617]
[1766165880306,0.01143249,87470.0,87451.0,1.10066]
[1766165880478,0.006,87469.0,87459.0,0.0182947]
[1766165880679,0.00010818,87471.0,87459.0,0.0182947]
[1766165880876,0.01143262,87469.0,87459.0,0.0182947]
[1766165881086,0.006,87470.0,87459.0,0.0182947]
[1766165881518,0.006,87470.0,87455.0,0.006]
[1766165881719,0.01143262,87469.0,87455.0,0.006]
[1766165881941,0.01143353,87462.0,87455.0,0.006]
[1766165882150,0.06859886,87465.0,87455.0,0.006]
[1766165882349,0.06316709,87463.0,87448.0,0.0025]
[1766165882518,0.01143353,87462.0,87448.0,0.0025]
[1766165882727,0.01143366,87461.0,87448.0,0.0025]
[1766165882947,0.006,87463.0,87448.0,0.0025]
[1766165883146,0.006,87463.0,87448.0,0.47949]
[1766165883360,0.006,87463.0,87459.0,0.0182947]
[1766165884824,0.006,87463.0,87448.0,0.47949]
[1766165884825,0.001099,87459.0,87448.0,1.05654]
[1766165885240,0.001099,87459.0,87448.0,0.47949]
[1766165885451,0.01143392,87459.0,87448.0,0.47949]
[1766165885621,0.05717287,87455.0,87447.0,0.006]
[1766165885842,0.59532,87463.0,87442.0,0.006]
[1766165885843,0.05717485,87452.0,87442.0,0.006]
[1766165886044,0.001099,87447.0,87442.0,0.006]
[1766165886245,0.001099,87447.0,87443.0,0.0025]
[1766165886444,0.01743458,87454.0,87443.0,0.0025]
[1766165886989,0.006,87454.0,87443.0,0.0025]
[1766165887188,0.06317293,87454.0,87443.0,0.0025]
[1766165887337,0.006,87454.0,87443.0,0.0025]
[1766165887538,0.0686089,87453.0,87443.0,0.0025]
[1766165887742,0.006,87454.0,87443.0,0.0025]
[1766165888194,0.01143288,87467.0,87445.0,0.0182947]
[1766165888400,0.01154054,87471.0,87459.0,0.0182947]
[1766165888401,0.00010818,87471.0,87459.0,0.0182947]
[1766165888597,0.00010818,87471.0,87460.0,0.46756]
[1766165888809,0.00024728,87472.0,87460.0,0.46756]
[1766165889019,0.00024728,87472.0,87460.0,0.46766818]
[1766165890809,0.0114334,87463.0,87460.0,0.00010818]
[1766165891050,0.01143392,87459.0,87448.0,0.006]
[1766165891253,0.01143432,87456.0,87448.0,0.006]
[1766165891508,0.01143419,87457.0,87448.0,0.006]
[1766165891634,0.01143405,87458.0,87448.0,0.006]
[1766165891836,0.05716885,87461.0,87448.0,0.006]
[1766165892043,0.00024728,87472.0,87448.0,0.006]
[1766165892354,0.00024728,87472.0,87461.0,0.001099]
[1766165892576,0.006,87471.0,87461.0,0.001099]
[1766165892779,0.006,87471.0,87453.0,1.03861]
[1766165892959,0.006,87471.0,87451.0,0.01143497]
[1766165893169,0.006,87470.0,87459.0,0.0182947]
[1766165893368,0.00024728,87472.0,87459.0,0.0182947]
[1766165893564,0.006,87475.0,87470.0,0.001099]
[1766165893746,0.00010812,87475.0,87470.0,0.001099]
[1766165893948,0.00010812,87475.0,87459.0,0.4798547]
[1766165894173,0.06859193,87474.0,87460.0,0.006]
[1766165894385,0.00010812,87475.0,87460.0,0.006]
[1766165895325,0.01153995,87475.0,87460.0,0.006]
[1766165895464,0.01153995,87475.0,87461.0,0.46156]
[1766165895673,0.00010812,87475.0,87461.0,0.46156]
[1766165896037,0.01142987,87490.0,87463.0,1.03861]
[1766165896038,0.006,87479.0,87463.0,1.03861]
[1766165896171,0.05719,87489.0,87466.0,0.0025]
[1766165896172,0.0025,87485.0,87466.0,0.0025]
[1766165896374,0.006,87489.0,87474.0,0.0025]
[1766165896574,0.01142974,87491.0,87474.0,0.0025]
[1766165896778,0.0114304,87486.0,87474.0,0.0025]
[1766165897005,0.06858139,87488.0,87474.0,0.0025]
[1766165897206,0.01143092,87482.0,87474.0,0.0025]
[1766165897420,0.006,87485.0,87474.0,0.002392]
[1766165897613,0.04576,87495.0,87474.0,0.002392]
[1766165897614,0.01,87502.0,87485.0,0.000991]
[1766165897833,0.01142974,87491.0,87478.0,0.46156]
[1766165898064,0.0114304,87486.0,87474.0,0.006]
[1766165898269,0.01143118,87480.0,87468.0,0.46156]
[1766165898467,0.01143118,87480.0,87466.0,0.006]
[1766165898807,0.01143183,87475.0,87466.0,0.006]
[1766165899027,0.01143183,87475.0,87460.0,5.0]
[1766165899028,0.0114334,87463.0,87460.0,4.65548]
[1766165899269,0.62093,87471.0,87460.0,4.65548]
[1766165899270,0.06859785,87467.0,87460.0,3.61891]
[1766165899474,0.006,87467.0,87460.0,3.61891]
[1766165899675,0.006,87469.0,87460.0,3.61891]
[1766165899902,0.0025,87473.0,87460.0,3.61891]
[1766165899903,0.006,87471.0,87460.0,3.61891]
[1766165900114,0.01143262,87469.0,87460.0,3.61891]
[1766165900263,0.01143301,87466.0,87460.0,3.61891]
[1766165900464,0.01143288,87467.0,87460.0,3.61891]
[1766165900717,0.01143327,87464.0,87460.0,3.61891]
[1766165900925,0.06859865,87466.0,87460.0,3.61891]
[1766165901076,0.006,87468.0,87460.0,3.61891]
[1766165901288,0.006,87468.0,87460.0,2.99667616]
[1766165901289,0.05716833,87461.0,87460.0,2.99667616]
[1766165901578,0.06316833,87461.0,87460.0,2.60956575]
[1766165901754,0.06316833,87461.0,87460.0,2.48053485]
[1766165901963,0.06316833,87461.0,87460.0,2.24829101]
[1766165902184,0.06316833,87461.0,87460.0,1.97550148]
[1766165902388,0.10892833,87461.0,87460.0,1.92674765]
[1766165902633,0.11142833,87461.0,87460.0,1.40876248]
[1766165902838,0.11142833,87461.0,87460.0,0.56559187]
[1766165903064,0.11142833,87461.0,87411.0,0.06143195]
[1766165903065,0.05718337,87438.0,87411.0,0.06143195]
[1766165903275,0.01143654,87439.0,87415.0,0.0182947]
[1766165903276,0.006,87437.0,87415.0,0.0182947]
[1766165903482,0.006,87437.0,87411.0,0.0003608]
[1766165903483,0.01143759,87431.0,87411.0,0.0003608]
[1766165903683,0.006,87430.0,87411.0,0.0063608]
[1766165903837,0.006,87430.0,87412.0,0.0125]
[1766165904303,0.006,87430.0,87412.0,0.01]
[1766165904502,0.006,87430.0,87413.0,0.0025]
[1766165905015,0.006,87430.0,87411.0,0.0003608]
[1766165905228,0.006,87430.0,87412.0,0.0025]
[1766165905361,0.004901,87430.0,87412.0,0.0025]
[1766165907496,0.06861984,87439.0,87411.0,0.0003608]
[1766165907497,0.006,87429.0,87416.0,0.0182947]
[1766165907840,0.006,87431.0,87416.0,0.0182947]
[1766165908047,0.006,87431.0,87417.0,0.0025]
[1766165908626,0.0025,87438.0,87418.0,0.01143929]
[1766165908845,0.0025,87438.0,87417.0,0.0025]
[1766165908846,0.006,87434.0,87417.0,0.0025]
[1766165910191,0.006,87434.0,87417.0,0.01393942]
[1766165910395,0.006,87434.0,87417.0,0.0025]
[1766165910598,0.0025,87438.0,87417.0,0.0025]
[1766165910916,0.0025,87436.0,87417.0,0.0025]
[1766165911526,0.01143602,87443.0,87417.0,0.0025]
[1766165911738,0.0025,87441.0,87427.0,0.59553]
[1766165912814,0.01143759,87431.0,87411.0,0.0063608]
[1766165913015,0.89432938,87440.0,87412.0,0.0025]
[1766165913016,0.01143798,87428.0,87412.0,0.0025]
[1766165913240,0.01143798,87428.0,87411.0,0.0063608]
[1766165913241,0.01143876,87422.0,87411.0,0.0003608]
[1766165913441,0.006,87421.0,87412.0,0.0025]
[1766165913646,0.006,87420.0,87412.0,0.0025]
[1766165917082,0.00596,87424.0,87414.0,0.0025]
[1766165917521,0.00596,87425.0,87414.0,0.0025]
[1766165918179,0.0114385,87424.0,87411.0,0.0003608]
[1766165918324,0.0114385,87424.0,87411.0,8e-07]
[1766165918505,0.01143902,87420.0,87411.0,8e-07]
[1766165918705,0.06737461,87421.0,87411.0,8e-07]
[1766165918706,0.01143955,87416.0,87411.0,8e-07]
[1766165918918,0.00596,87416.0,87411.0,8e-07]
[1766165919329,0.0284747,87412.0,87411.0,8e-07]
[1766165919496,0.01144138,87402.0,87375.0,0.45446]
[1766165919709,0.0114419,87398.0,87375.0,0.4545681]
[1766165919914,0.0114419,87398.0,87376.0,0.0282947]
[1766165920143,0.01144177,87399.0,87377.0,0.0025]
[1766165920292,0.06865148,87398.0,87376.0,0.01]
[1766165920494,0.01144177,87399.0,87377.0,0.0025]
[1766165920708,0.01614,87401.0,87377.0,0.0025]
[1766165920914,0.01144177,87399.0,87377.0,0.0025]
[1766165921115,0.05720861,87400.0,87377.0,0.0025]
[1766165921310,0.01144204,87397.0,87376.0,0.0182947]
[1766165921600,0.05720954,87398.0,87375.0,0.0001081]
[1766165921601,0.01144308,87389.0,87375.0,0.0001081]
[1766165921783,0.01144334,87387.0,87375.0,0.0001081]
[1766165921995,0.01144334,87387.0,87371.0,0.00596]
[1766165922147,0.01144334,87387.0,87371.0,0.00606824]
[1766165922352,0.00758,87387.0,87371.0,0.00606824]
[1766165923161,0.01902334,87387.0,87371.0,0.00606824]
[1766165923361,0.00758,87387.0,87371.0,0.00606824]
[1766165924203,0.06865333,87396.0,87372.0,0.0025]
[1766165924424,0.01144204,87397.0,87372.0,0.0025]
[1766165924611,0.10897085,87396.0,87372.0,0.0025]
[1766165924774,0.06865398,87395.0,87372.0,0.0025]
[1766165925146,0.01144243,87394.0,87372.0,0.0025]
[1766165925275,0.01144112,87404.0,87375.0,0.45446]
[1766165925474,0.01144164,87400.0,87378.0,0.61853]
[1766165925702,0.01144217,87396.0,87378.0,0.61853]
[1766165926014,0.01144217,87396.0,87372.0,0.0025]
[1766165926015,0.09623508,87394.0,87372.0,0.0025]
[1766165926221,0.01144308,87389.0,87372.0,0.0025]
[1766165926427,0.02758,87391.0,87372.0,0.0025]
[1766165928819,0.02758,87391.0,87371.0,0.00606824]
[1766165928820,0.01144321,87388.0,87371.0,0.00606824]
[1766165929007,0.00596,87392.0,87351.0,0.45446]
[1766165929008,0.01144452,87378.0,87351.0,0.45446]
[1766165929366,0.01144452,87378.0,87360.0,0.00596]
[1766165929367,0.01144479,87376.0,87360.0,0.00596]
[1766165929576,0.027178,87378.0,87360.0,0.00596]
[1766165929776,0.027178,87378.0,87361.0,0.0025]
[1766165930205,0.000108,87378.0,87363.0,1.07299]
[1766165930355,0.00596,87381.0,87378.0,0.000991]
[1766165930761,0.06865803,87390.0,87364.0,0.6368247]
[1766165930762,0.01144295,87390.0,87364.0,0.6368247]
[1766165931099,0.02707,87388.0,87364.0,0.000108]
[1766165931301,0.00596,87389.0,87364.0,0.000108]
[1766165931302,0.02707,87378.0,87364.0,0.000108]
[1766165931463,0.09573716,87378.0,87361.0,0.0025]
[1766165931643,0.01144465,87377.0,87361.0,0.0025]
[1766165932558,0.09584536,87378.0,87361.0,0.0025]
[1766165932751,0.01144479,87376.0,87361.0,0.0025]
[1766165932987,0.01144465,87377.0,87361.0,0.0025]
[1766165933186,0.09584536,87378.0,87361.0,0.0025]
[1766165933187,0.0271782,87378.0,87361.0,0.0025]
[1766165933355,0.0001082,87378.0,87361.0,0.0025]
[1766165933558,0.00596,87377.0,87364.0,0.61853]
[1766165934929,0.0001082,87378.0,87365.0,0.01144623]
[1766165935236,0.0001082,87378.0,87361.0,0.0025]
[1766165935237,0.0001082,87378.0,87377.0,0.000991]
[1766165935368,0.0001082,87378.0,87368.0,0.00596]
[1766165935569,0.00596,87389.0,87371.0,0.61853]
[1766165936251,0.00596,87389.0,87370.0,0.45446]
[1766165937572,0.07461867,87389.0,87370.0,0.45446]
[1766165937721,0.01144282,87391.0,87368.0,0.00596]
[1766165937722,0.03303,87388.0,87368.0,0.00596]
[1766165937928,0.03303,87388.0,87368.0,0.0060682]
[1766165939152,0.02707,87385.0,87368.0,0.0060682]
[1766165939573,0.000108,87368.0,87361.0,0.0025]
[1766165939896,0.00021618,87368.0,87361.0,0.0025]
[1766165940089,0.00010818,87368.0,87361.0,0.0025]
[1766165941040,1.8e-07,87368.0,87361.0,0.0025]
[1766165941246,0.000108,87361.0,87347.0,0.61853]
[1766165941895,0.00596,87365.0,87345.0,0.45446]
[1766165941896,0.00596,87365.0,87348.0,0.6393247]
[1766165942768,0.00596,87365.0,87348.0,0.62103]
[1766165943427,1.8e-07,87368.0,87348.0,0.62103]
[1766165943630,0.00596,87365.0,87348.0,0.62103]
[1766165944801,0.00596,87365.0,87346.0,0.0025]
[1766165944802,0.02696,87364.0,87346.0,0.0025]
[1766165945808,0.00596,87365.0,87346.0,0.0025]
[1766165947161,0.005077,87365.0,87358.0,0.01144714]
[1766165947365,0.03292,87385.0,87365.0,1.10419]
[1766165947566,0.03204,87383.0,87359.0,0.00596]
[1766165947904,0.06866461,87382.0,87359.0,0.00606818]
[1766165948113,0.03204,87383.0,87359.0,0.00606818]
[1766165948284,0.01740361,87385.0,87363.0,0.61572]
[1766165948285,0.00596,87385.0,87363.0,0.61572]
[1766165948492,0.00596,87385.0,87364.0,0.61572]
[1766165948694,0.00596,87385.0,87359.0,0.00606818]
[1766165948695,0.03204,87382.0,87359.0,0.00606818]
[1766165949101,0.03204,87382.0,87360.0,0.61572]
[1766165949465,0.00596,87385.0,87360.0,0.61572]
[1766165949662,0.01144269,87392.0,87360.0,0.61572]
[1766165949663,0.03204,87392.0,87366.0,0.0114461]
[1766165950034,0.03204,87392.0,87362.0,0.0182947]
[1766165950035,0.02608,87383.0,87360.0,0.0025]
[1766165950209,0.02608,87383.0,87362.0,0.61572]
[1766165950722,0.02608,87383.0,87362.0,1.10419]
[1766165950950,0.02608,87383.0,87364.0,0.61572]
[1766165950951,0.01144387,87383.0,87364.0,0.61572]
[1766165951150,0.06866874,87376.0,87365.0,0.00596]
[1766165951349,0.01144492,87375.0,87365.0,0.004861]
[1766165951476,0.01144452,87378.0,87365.0,0.004861]
[1766165951679,0.01144465,87377.0,87365.0,0.004861]
[1766165951913,0.06866484,87381.0,87365.0,0.004861]
[1766165952120,0.01144439,87379.0,87365.0,0.004861]
[1766165952318,0.06866559,87380.0,87365.0,0.004861]
[1766165952528,0.01144439,87379.0,87365.0,0.004861]
[1766165952756,0.0503347,87382.0,87365.0,0.004861]
[1766165952947,0.01144452,87378.0,87365.0,0.004861]
[1766165953358,0.06866727,87378.0,87365.0,0.004861]
[1766165953560,0.06866641,87379.0,87365.0,0.004861]
[1766165953762,0.01144413,87381.0,87365.0,0.004861]
[1766165953919,0.01144452,87378.0,87365.0,0.004861]
[1766165954121,0.2288857,87380.0,87359.0,0.05010818]
[1766165954401,0.01144492,87375.0,87360.0,0.00596]
[1766165954602,0.01144426,87380.0,87360.0,0.00596]
[1766165954800,0.01740439,87379.0,87362.0,0.48847]
[1766165954972,0.01144452,87378.0,87362.0,0.48847]
[1766165955176,0.01144465,87377.0,87362.0,0.48847]
[1766165955425,0.00596,87379.0,87362.0,0.48847]
[1766165955627,0.00596,87379.0,87363.0,0.61572]
[1766165956107,0.01144243,87394.0,87379.0,0.001099]
[1766165956309,0.24028559,87396.0,87376.0,0.00596]
[1766165956310,0.01144269,87392.0,87376.0,0.00596]
[1766165956535,0.05721356,87392.0,87376.0,0.00596]
[1766165956653,0.00596,87393.0,87376.0,0.00596]
[1766165957108,0.2445,87396.0,87380.0,0.48847]
[1766165957301,0.2445,87396.0,87381.0,1.10419]
[1766165957502,0.2445,87396.0,87381.0,0.48847]
[1766165960522,0.2445,87396.0,87395.0,0.001099]
[1766165960839,0.2445,87396.0,87392.0,0.00596]
[1766165961257,0.25,87400.0,87392.0,0.00596]
[1766165961743,0.2445,87412.0,87393.0,1.02834]
[1766165961920,0.00596,87410.0,87393.0,1.0466347]
[1766165962138,0.00596,87410.0,87394.0,0.0182947]
[1766165962289,0.00596,87412.0,87394.0,0.5913547]
[1766165962493,0.2445,87416.0,87395.0,0.57306]
[1766165962696,0.00596,87413.0,87396.0,0.57306]
[1766165962922,0.0114402,87411.0,87396.0,0.57306]
[1766165963100,0.06864127,87411.0,87396.0,0.57306]
[1766165963302,0.0114402,87411.0,87396.0,0.57306]
[1766165963586,0.00596,87413.0,87396.0,0.57306]
[1766165963759,0.01144046,87409.0,87396.0,0.57306]
[1766165963913,0.00596,87413.0,87396.0,0.57306]
[1766165964121,0.0114402,87411.0,87396.0,0.57306]
[1766165964319,0.00596,87413.0,87396.0,0.57306]
[1766165964728,0.00596,87413.0,87398.0,0.57306]
[1766165964939,0.00596,87413.0,87399.0,0.00596]
[1766165965140,0.01144007,87412.0,87399.0,0.00596]
[1766165965395,0.00596,87413.0,87399.0,0.00596]
[1766165965539,0.05720488,87406.0,87399.0,0.004861]
[1766165965747,0.01144073,87407.0,87399.0,1e-06]
[1766165965968,0.01144125,87403.0,87399.0,1e-06]
[1766165966212,0.01144138,87402.0,87396.0,0.00596]
[1766165966417,0.01144164,87400.0,87396.0,0.00606824]
[1766165966620,0.06864914,87401.0,87396.0,0.00606824]
[1766165966828,0.01144151,87401.0,87396.0,0.00606824]
[1766165967546,0.01144151,87401.0,87388.0,0.45528]
[1766165967760,0.01144151,87401.0,87350.0,0.00199998]
[1766165967761,0.01144413,87381.0,87373.0,0.0458]
[1766165967962,0.00596,87385.0,87368.0,0.00596]
[1766165968085,0.01144413,87381.0,87368.0,0.00596]
[1766165968291,0.25772374,87384.0,87359.0,0.66886]
[1766165968292,0.01144479,87376.0,87359.0,0.66886]
[1766165968493,0.01144452,87378.0,87361.0,0.0182947]
[1766165968709,0.01144387,87383.0,87363.0,0.45528]
[1766165968906,0.00596,87385.0,87361.0,0.0182947]
[1766165969123,0.01740361,87385.0,87364.0,0.57306]
[1766165969320,0.01144374,87384.0,87366.0,0.57306]
[1766165969546,0.01740361,87385.0,87367.0,0.57902]
[1766165969726,0.00596,87385.0,87367.0,0.57902]
[1766165969978,0.00596,87385.0,87369.0,0.57306]
[1766165970717,0.00596,87385.0,87370.0,0.45528]
[1766165970935,0.00596,87392.0,87371.0,0.0182947]
[1766165971138,0.01144374,87384.0,87372.0,1.02834]
[1766165971343,0.01144348,87386.0,87372.0,1.02834]
[1766165971551,0.06866559,87380.0,87371.0,0.00596]
[1766165971759,0.06866559,87380.0,87360.0,0.0458]
[1766165971760,0.01144439,87379.0,87370.0,0.00596]
[1766165971962,0.01144426,87380.0,87370.0,0.00596]
[1766165972109,0.01144413,87381.0,87370.0,0.00596]
[1766165972327,0.01144387,87383.0,87370.0,0.00596]
[1766165972495,0.011444,87382.0,87370.0,0.00596]
[1766165972701,0.01144387,87383.0,87370.0,0.00596]
[1766165973081,0.011444,87382.0,87370.0,0.00596]
[1766165973297,0.23436,87384.0,87362.0,0.57902]
[1766165973504,0.011444,87382.0,87362.0,0.57902]
[1766165974045,0.05722198,87379.0,87362.0,0.57902]
[1766165974242,0.00596,87380.0,87362.0,0.57902]
[1766165974605,0.06866844,87377.0,87362.0,0.00596]
[1766165974805,0.00596,87380.0,87362.0,0.00596]
[1766165975438,0.01144413,87381.0,87362.0,0.00596]
[1766165975640,0.23436,87383.0,87363.0,1.06695]
[1766165975912,0.0025,87391.0,87367.0,0.46236]
[1766165976123,0.01144321,87388.0,87372.0,0.60459]
[1766165976338,0.07461776,87390.0,87373.0,0.00596]
[1766165976542,0.00596,87390.0,87373.0,0.61055]
[1766165976738,0.01394217,87396.0,87375.0,0.60459]
[1766165976993,0.00596,87392.0,87375.0,0.60459]
[1766165977836,0.07461659,87392.0,87375.0,0.60459]
[1766165978041,0.00596,87392.0,87375.0,0.60459]
[1766165978464,0.00846,87399.0,87378.0,0.46236]
[1766165978668,0.00846,87399.0,87380.0,1.06695]
[1766165978875,0.0114423,87395.0,87380.0,0.46236]
[1766165979055,0.0114423,87395.0,87379.0,0.00596]
[1766165979238,0.00596,87399.0,87379.0,0.61055]
[1766165979437,0.0025,87398.0,87379.0,0.61055]
[1766165979672,0.00596,87399.0,87379.0,0.61055]
[1766165980073,0.25604969,87401.0,87383.0,0.0182947]
[1766165980074,0.24460818,87401.0,87383.0,0.0182947]
[1766165980284,0.00596,87400.0,87384.0,0.60459]
[1766165980483,0.00596,87400.0,87385.0,0.61055]
[1766165980725,0.23436,87399.0,87385.0,0.00596]
[1766165981087,0.24580177,87399.0,87385.0,0.00596]
[1766165981464,0.0114419,87398.0,87385.0,0.00596]
[1766165981694,0.01144204,87397.0,87385.0,0.00596]
[1766165981869,0.0114419,87398.0,87385.0,0.00596]
[1766165982082,0.01144177,87399.0,87385.0,0.00596]
[1766165982260,0.24032,87400.0,87385.0,0.00596]
[1766165982666,0.24460818,87401.0,87400.0,0.001099]
[1766165982840,0.00010818,87401.0,87400.0,0.001099]
[1766165983039,0.23436,87420.0,87400.0,0.001099]
[1766165983286,0.01739916,87419.0,87395.0,0.46236]
[1766165983496,0.01143968,87415.0,87396.0,0.60459]
[1766165983845,0.06863778,87416.0,87396.0,0.60459]
[1766165984053,0.0025,87418.0,87397.0,0.0182947]
[1766165984373,0.01143942,87417.0,87398.0,0.00596]
[1766165984589,0.0025,87418.0,87399.0,0.60459]
[1766165984957,0.00596,87419.0,87399.0,0.46236]
[1766165985337,0.24043,87419.0,87399.0,0.46236]
[1766165985542,0.00596,87418.0,87399.0,1.06695]
[1766165985781,0.00596,87418.0,87400.0,0.60459]
[1766165986606,0.23447,87431.0,87418.0,0.001099]
[1766165986807,0.00596,87430.0,87411.0,0.61055]
[1766165987173,0.00596,87430.0,87412.0,0.60459]
[1766165987598,0.01143824,87426.0,87411.0,0.46832]
[1766165987859,0.23447,87430.0,87411.0,0.00596]
[1766165988065,0.00596,87427.0,87411.0,0.00596]
[1766165988213,0.0114385,87424.0,87411.0,0.00596]
[1766165988421,0.0114385,87424.0,87403.0,0.46236]
[1766165988422,0.23447,87422.0,87403.0,0.46236]
[1766165988653,0.23447,87422.0,87398.0,0.0025]
[1766165988852,0.22255,87415.0,87399.0,0.00596]
[1766165989058,0.22255,87415.0,87400.0,0.0025]
[1766165989465,0.22255,87415.0,87399.0,0.00596]
[1766165989466,0.22255,87427.0,87415.0,0.001099]
[1766165989622,0.00596,87426.0,87415.0,0.001099]
[1766165989862,0.07458949,87426.0,87415.0,0.001099]
[1766165990066,0.00596,87426.0,87411.0,0.00596]
[1766165990684,0.00596,87426.0,87412.0,0.60459]
[1766165991091,0.00596,87426.0,87413.0,0.6228847]
[1766165991308,0.00596,87426.0,87414.0,0.00596]
[1766165991837,0.00596,87426.0,87414.0,0.61055]
[1766165992175,0.01143745,87432.0,87414.0,0.61055]
[1766165992377,0.0025,87435.0,87414.0,0.61055]
[1766165992603,0.01143732,87433.0,87414.0,0.61055]
[1766165992758,0.01071967,87433.0,87414.0,0.61055]
[1766165992958,0.0025,87435.0,87414.0,0.61055]
[1766165993164,0.23398693,87436.0,87403.0,0.05724125]
[1766165993165,0.01143745,87432.0,87403.0,0.0458]
[1766165993359,0.00596,87437.0,87402.0,0.0025]
[1766165993360,0.23398876,87422.0,87402.0,0.0025]
[1766165993624,0.23398876,87422.0,87400.0,0.46236]
[1766165993625,0.23398876,87422.0,87401.0,0.0025]
[1766165993836,0.23398876,87422.0,87400.0,0.4806547]
[1766165993837,0.29118321,87422.0,87403.0,0.00596]
[1766165993976,0.23398876,87422.0,87403.0,0.00596]
[1766165994820,0.23398876,87422.0,87400.0,0.4806547]
[1766165994821,0.22255,87421.0,87404.0,0.00596]
[1766165994981,0.23398889,87421.0,87404.0,0.00596]
[1766165995486,0.22255,87421.0,87404.0,0.00596]
[1766165995681,0.01143916,87419.0,87404.0,0.00596]
[1766165995889,0.23398889,87421.0,87401.0,0.0025]
[1766165996092,0.23398889,87421.0,87405.0,0.00596]
[1766165996093,0.22255,87421.0,87405.0,0.00596]
[1766165996898,0.22255,87421.0,87396.0,0.0458]
[1766165996899,0.22255,87414.0,87391.0,0.46236]
[1766165997128,0.22255,87412.0,87396.0,0.00596]
[1766165997361,0.01144177,87399.0,87385.0,0.05]
[1766165997668,0.06865409,87395.0,87385.0,0.05]
[1766165997869,0.06865409,87395.0,87370.0,1.31320345]
[1766165997870,0.05721598,87389.0,87368.0,0.60459]
[1766165998015,0.00596,87389.0,87372.0,0.00596]
[1766165998387,0.00596,87389.0,87373.0,0.0025]
[1766165999329,0.00596,87390.0,87389.0,0.001099]
[1766165999535,0.00596,87390.0,87372.0,0.00596]
[1766165999947,0.00596,87390.0,87372.0,0.46832]
[1766166000176,0.00596,87390.0,87373.0,0.0025]
[1766166000940,0.01144649,87363.0,87349.0,0.06143195]
[1766166001147,0.001099,87373.0,87330.0,0.6631]
[1766166001148,0.0182947,87351.0,87330.0,0.6631]
[1766166001348,0.0182947,87351.0,87329.0,0.0004]
[1766166001349,0.00596,87350.0,87329.0,0.0004]
[1766166001555,0.01144714,87358.0,87329.0,0.0004]
[1766166001556,0.01144714,87358.0,87340.0,1.31394093]
[1766166001557,0.00596,87349.0,87340.0,1.31394093]
[1766166001770,0.00596,87352.0,87339.0,0.60459]
[1766166001973,0.00596,87352.0,87339.0,1.91853093]
[1766166002219,0.00596,87352.0,87339.0,1.91889224]
[1766166002433,0.00596,87352.0,87339.0,0.00036131]
[1766166003224,0.01144885,87345.0,87339.0,3.1e-07]
[1766166003429,0.05724747,87341.0,87339.0,3.1e-07]
[1766166003660,0.10304747,87341.0,87339.0,3.1e-07]
[1766166003909,0.0182947,87343.0,87339.0,3.1e-07]
[1766166004215,0.0458,87357.0,87343.0,0.000361]
[1766166004417,0.0114478,87353.0,87343.0,0.000361]
[1766166004621,0.01144767,87354.0,87339.0,3.1e-07]
[1766166004883,0.00596,87356.0,87339.0,3.1e-07]
[1766166005088,0.01144754,87355.0,87339.0,3.1e-07]
[1766166005286,0.00596,87356.0,87355.0,0.000361]
[1766166005444,0.0182947,87376.0,87355.0,0.000361]
[1766166005626,0.0182947,87376.0,87340.0,1.33135043]
[1766166005627,0.05176,87373.0,87350.0,1.91574093]
[1766166006231,0.06320518,87373.0,87350.0,1.91574093]
[1766166006432,0.01144557,87370.0,87350.0,1.91574093]
[1766166006636,0.0025,87376.0,87345.0,0.05724398]
[1766166006838,0.01144531,87372.0,87350.0,1.31394093]
[1766166007040,0.0114457,87369.0,87350.0,1.31394093]
[1766166007372,0.00596,87368.0,87344.0,0.0182947]
[1766166008134,0.01740583,87368.0,87344.0,0.0182947]
[1766166008339,0.01740583,87368.0,87341.0,0.0025]
[1766166008340,0.00596,87368.0,87341.0,0.0025]
[1766166008745,0.0182947,87365.0,87341.0,0.0025]
[1766166008973,0.01144557,87370.0,87344.0,1.10065]
[1766166009176,0.00596,87369.0,87365.0,0.000361]
[1766166009356,0.00596,87369.0,87349.0,1.10065]
[1766166009558,0.00596,87369.0,87349.0,1.10661]
[1766166009824,0.0182947,87391.0,87349.0,1.10661]
[1766166009825,0.04584,87381.0,87360.0,0.6018]
[1766166009978,0.00596,87380.0,87360.0,0.6018]
[1766166010167,0.01144452,87378.0,87360.0,0.6018]
[1766166010391,0.01144505,87374.0,87350.0,1.31394093]
[1766166010624,0.000738,87360.0,87350.0,0.00596]
[1766166011026,0.00596,87362.0,87350.0,0.00596]
[1766166011410,0.00596,87362.0,87350.0,1.31990093]
[1766166011822,0.00596,87362.0,87340.0,0.04584]
[1766166011823,0.00596,87362.0,87341.0,0.0025]
[1766166012019,0.01144675,87361.0,87341.0,0.0025]
[1766166012467,0.00596,87362.0,87341.0,0.0025]
[1766166012678,0.00596,87362.0,87330.0,1.31394093]
[1766166012679,0.0579852,87341.0,87329.0,0.0004]
[1766166012874,0.0518,87340.0,87329.0,0.0004]
[1766166013950,0.05725343,87331.0,87329.0,1e-08]
[1766166014271,0.005599,87330.0,87329.0,0.00010819]
[1766166014476,0.005599,87330.0,87329.0,1.9e-07]
[1766166014829,0.01145029,87334.0,87330.0,0.000108]
[1766166014830,0.06870182,87334.0,87330.0,0.000108]